[Event "88th Tata Steel Masters 2026"]
[White "Erigaisi Arjun"]
[Black "Sindarov,Javokhir"]
[Site "Wijk aan Zee"]
[Round "11.5"]
[Annotator "RC"]
[Result "0-1"]
[Date "2026.01.30"]
[WhiteElo "2775"]
[BlackElo "2726"]
[PlyCount "132"]
[TimeControl "60"]

1. d4 {[%emt 0:0:0]} d5 {[%emt 0:0:0]} 2. Nf3 {[%emt 0:0:0]} Nf6 {[%emt 0:0:0]} 3. c4 {[%emt 0:0:0]} e6 {[%emt 0:0:0]} 4. Nc3 {[%emt 0:0:0]} c6 {[%emt 0:0:0]} 5. Qc2 {[%emt 0:0:0]} dxc4 {[%emt 0:0:0]} 6. a4 {[%emt 0:0:0]} c5 {[%emt 0:0:0]} 7. dxc5 {[%emt 0:0:0]} Nc6 {[%emt 0:0:0]} 8. e4 {[%emt 0:0:0]} Nb4 {[%emt 0:0:0]} 9. Qb1 {[%emt 0:0:0]} Bxc5 {[%emt 0:0:0]} 10. Bxc4 {[%emt 0:0:0]} e5 {[%emt 0:0:0]} 11. O-O {[%emt 0:0:0]} O-O {[%emt 0:4:28]} 12. Bg5 {[%emt 0:0:0]} h6 {[%emt 0:0:51]} 13. Bh4 {[%emt 0:0:0]} Qe7 {[%emt 0:0:36]} 14. h3 {[%emt 0:0:0]} Be6 {[%emt 0:9:34]} 15. Nxe5 {[%emt 0:0:0]} Rad8 {[%emt 0:4:41]} 16. Bxe6 {[%emt 0:10:14]} Qxe6 {[%emt 0:1:6]} 17. Nf3 {[%emt 0:0:53]} Rd3 {[%emt 0:17:42]} 18. e5 {[%emt 0:5:54]} Nh5 {[%emt 0:9:36]} 19. Ne4 {[%emt 0:4:4]} b6 {[%emt 0:0:54]} 20. Ra3 {[%emt 0:11:3]} Qd5 {[%emt 0:3:25]} 21. Rxd3 {[%emt 0:13:38]} Nxd3 {[%emt 0:0:48]} 22. Nc3 {[%emt 0:0:52]} Qc4 {[%emt 0:1:7]} 23. Rd1 {[%emt 0:22:48]} Nxe5 {[%emt 0:6:33]} 24. Nxe5 {[%emt 0:0:46]} Qxh4 {[%emt 0:0:34]} 25. Qf5 {[%emt 0:4:49]} Nf4 {[%emt 0:11:40]} 26. Ne4 {[%emt 0:3:16]} Ne2+ {[%emt 0:2:14]} 27. Kf1 {[%emt 0:2:7]} Nd4 {[%emt 0:1:7]} 28. Qg4 {[%emt 0:0:37]} Qe7 {[%emt 0:3:24]} 29. Nxc5 {[%emt 0:1:14]} bxc5 {[%emt 0:1:1]} 30. Re1 {[%emt 0:5:46]} Qb7 {[%emt 0:3:52]} 31. Qe4 {[%emt 0:1:53]} Qa6+ {[%emt 0:2:52]} 32. Kg1 {[%emt 0:3:8]} Qxa4 {[%emt 0:0:37]} 33. Qd5 {[%emt 0:2:19]} Qa5 {[%emt 0:5:4]} 34. Rd1 {[%emt 0:6:29]} Qc7 {[%emt 0:2:24]} 35. Re1 {[%emt 0:1:48]} Rd8 {[%emt 0:4:37]} 36. Qc4 {[%emt 0:0:36]} Re8 {[%emt 0:1:42]} 37. f4 {[%emt 0:1:22]} g5 {[%emt 0:8:7]} 38. Rd1 {[%emt 0:4:4]} Rd8 {[%emt 0:2:19]} 39. Rc1 {[%emt 0:3:4]} Ne6 {[%emt 0:1:59]} 40. f5 {[%emt 0:0:0]} Nf4 {[%emt 0:0:0]} 41. Ng4 {[%emt 0:28:39]} h5 {[%emt 0:38:37]} 42. Nf6+ {[%emt 0:11:55]} Kg7 {[%emt 0:0:18]} 43. Ne4 {[%emt 0:0:7]} Qb7 {[%emt 0:2:26]} 44. Qc2 {[%emt 0:4:40]} Rd4 {[%emt 0:1:38]} 45. Re1 {[%emt 0:2:52]} Nd3 {[%emt 0:8:3]} 46. Qd2 {[%emt 0:1:28]} Nf4 {[%emt 0:1:20]} 47. Qc2 {[%emt 0:0:4]} Qb4 {[%emt 0:1:2]} 48. Qc3 {[%emt 0:0:38]} a5 {[%emt 0:3:27]} 49. Nxg5 {[%emt 0:3:12]} Qxc3 {[%emt 0:0:15]} 50. bxc3 {[%emt 0:0:3]} Rd2 {[%emt 0:0:36]} 51. Kf1 {[%emt 0:2:35]} Rxg2 {[%emt 0:1:28]} 52. Re4 {[%emt 0:1:16]} Rxg5 {[%emt 0:0:25]} 53. Rxf4 {[%emt 0:0:4]} Kf6 {[%emt 0:0:19]} 54. Ra4 {[%emt 0:1:42]} Rg3 {[%emt 0:0:20]} 55. Rc4 {[%emt 0:0:5]} Rxh3 {[%emt 0:1:36]} 56. Kg2 {[%emt 0:0:4]} Re3 {[%emt 0:0:11]} 57. Rxc5 {[%emt 0:0:5]} Re5 {[%emt 0:0:11]} 58. Rc7 {[%emt 0:0:6]} a4 {[%emt 0:0:54]} 59. Ra7 {[%emt 0:2:35]} Re4 {[%emt 0:0:5]} 60. Rc7 {[%emt 0:1:33]} Re7 {[%emt 0:0:14]} 61. Rc6+ {[%emt 0:15:5]} Kxf5 {[%emt 0:15:6]} 62. Ra6 {[%emt 0:0:9]} Re4 {[%emt 0:0:8]} 63. Rc6 {[%emt 0:0:46]} Re6 {[%emt 0:0:40]} 64. Rc5+ {[%emt 0:0:13]} Re5 {[%emt 0:0:7]} 65. Rc7 {[%emt 0:0:5]} Ra5 {[%emt 0:0:8]} 66. Rxf7+ {[%emt 0:0:6]} Ke4 {[%emt 0:0:5]} 0-1

[Event "88th Tata Steel Masters 2026"]
[White "Giri,Anish"]
[Black "Erdogmus,Yagiz Kaan"]
[Site "Wijk aan Zee"]
[Round "11.6"]
[Annotator "TA"]
[Result "1-0"]
[Date "2026.01.30"]
[WhiteElo "2760"]
[BlackElo "2658"]
[PlyCount "63"]
[TimeControl "60"]

{[%evp 19,62,25,30,34,31,33,15,12,14,9,31,37,35,42,43,55,40,12,22,18,15,34,14,-21,-27,-14,-31,-6,138,137,229,155,471,468,472,477,571,591,1254,1106,1062,1098,1032,920,899]} 1. d4 {[%emt 0:0:0]} d5 {[%emt 0:0:0]} 2. c4 {[%emt 0:0:0]} e6 {[%emt 0:0:0]} 3. Nf3 {[%emt 0:0:0]} Nf6 {[%emt 0:0:0]} 4. Nc3 {[%emt 0:0:0]} Be7 {[%emt 0:0:0]} 5. Bf4 {[%emt 0:0:0]} O-O {[%emt 0:0:0]} 6. e3 {[%emt 0:0:0]} c5 {[%emt 0:0:0]} 7. dxc5 {[%emt 0:0:0]} Bxc5 {[%emt 0:0:0]} 8. Qc2 {[%emt 0:0:0]} Nc6 {[%emt 0:0:0]} 9. a3 {[%emt 0:0:0]} Qa5 {[%emt 0:0:0]} 10. Rd1 {[%emt 0:0:0]} Be7 {[%emt 0:0:0]} 11. Be2 {[%emt 0:0:0] D37: Queen's Gambit Declined: 5 Bf4.} Ne4 {[%emt 0:0:0]} 12. cxd5 {[%emt 0:0:0]} Nxc3 {[%emt 0:0:0]} 13. bxc3 {[%emt 0:0:0] A sharp opening. The position is equal.} exd5 {[%emt 0:0:0]} 14. O-O {[%emt 0:0:0]} Bf6 {[%emt 0:2:6] 14...h6 gains popularity.} 15. c4 {[%emt 0:0:0]} dxc4 {[%emt 0:16:50]} 16. Bxc4 {[%emt 0:36:44]} Bf5 {[%emt 0:41:54]} 17. Qa2 {[%emt 0:0:0]} Be4 $146 {[%emt 0:18:10] Repels Rd5} ({Predecessor:} 17... Bg6 18. Rd7 Qc3 19. Bd5 Ne7 20. Bd6 Nxd5 21. Bxf8 Nxe3 22. fxe3 Rxf8 23. Rxb7 Qxe3+ {1-0 Makarian,R (2414)-Lobanov,S (2507) Moscow Aeroflot op-A 2020 (7)} )18. Nd2 {[%emt 0:11:49]} Bg6 {[%emt 0:3:49]} 19. Bb3 {[%emt 0:10:58]} Ne5 {[%emt 0:4:43]} 20. Bd5 {[%emt 0:5:17][%cal Yd2e4]} Bd3 {[%emt 0:7:44]} 21. Bxe5 {[%emt 0:2:41]} Bxe5 {[%emt 0:0:38]} 22. Nf3 {[%emt 0:0:52][%cal Yd2f3,Yf3e5,Ye5f7][%mdl 32]} Bxf1 {[%emt 0:1:45]} 23. Nxe5 {[%emt 0:1:9]} Ba6 {[%emt 0:1:15]} (23... Bb5 $11 24. Nxf7 Be8 25. Nd6+ Kh8 )24. Nxf7 $16 {[%emt 0:3:17] White has more active pieces.} ({Inferior is} 24. Bxf7+ Kh8 25. Qa1 Rad8 26. Rxd8 Qxd8 $15 (26... Rxd8 27. Bb3 $11 ))Qc3 {[%emt 0:1:36]} (24... Qc7 $16 )25. h4 {[%emt 0:5:52]} g6 $2 {[%emt 0:1:25] [#] This costs Black the game.} (25... Rac8 $16 )26. Be6 $18 {[%emt 0:6:42] White is clearly winning.} Rxf7 {[%emt 0:5:10]} 27. Bxf7+ {[%emt 0:0:37]} Kh8 {[%emt 0:0:31]} 28. Qe6 {[%emt 0:3:29] Against Qf6} Bb5 {[%emt 0:2:24]} 29. Rd4 {[%emt 0:4:29][%cal Re6f6] [#]} Qc1+ {[%emt 0:0:45]} 30. Kh2 {[%emt 0:0:34][%cal Re6e5]} Qc7+ {[%emt 0:0:34]} 31. Rf4 {[%emt 0:2:3][%cal Re6f6]} Qc3 {[%emt 0:0:30]} 32. Qe7 {[%emt 0:1:22] Weighted Error Value: White=0.25 (precise) /Black=0.55   Loses game:     	---       	Black=1      Mistake:       	---       	Black=2      Inaccurate:     	White=3     	Black=1      OK:         	White=3     	Black=2      Best:        	White=3     	---} 1-0

[Event "88th Tata Steel Masters 2026"]
[White "Gukesh D"]
[Black "Aravindh,Chithambaram VR."]
[Site "Wijk aan Zee"]
[Round "11.7"]
[Annotator "RC"]
[Result "1/2-1/2"]
[Date "2026.01.30"]
[WhiteElo "2754"]
[BlackElo "2700"]
[PlyCount "136"]
[TimeControl "60"]

1. d4 {[%emt 0:0:0]} d5 {[%emt 0:0:0]} 2. Nf3 {[%emt 0:0:0]} Nf6 {[%emt 0:0:0]} 3. c4 {[%emt 0:0:0]} e6 {[%emt 0:0:0]} 4. Nc3 {[%emt 0:0:0]} Be7 {[%emt 0:0:0]} 5. Bf4 {[%emt 0:0:0]} O-O {[%emt 0:0:0]} 6. e3 {[%emt 0:0:0]} b6 {[%emt 0:0:0]} 7. Be2 {[%emt 0:0:0]} dxc4 {[%emt 0:0:0]} 8. Bxc4 {[%emt 0:0:0]} Bb7 {[%emt 0:0:0]} 9. Qe2 {[%emt 0:0:0]} c5 {[%emt 0:0:0]} 10. O-O {[%emt 0:0:0]} cxd4 {[%emt 0:2:5]} 11. Nxd4 {[%emt 0:0:0]} Nc6 {[%emt 0:2:45]} 12. Nxc6 {[%emt 0:9:6]} Bxc6 {[%emt 0:0:44]} 13. Rfd1 {[%emt 0:1:20]} Qc8 {[%emt 0:4:47]} 14. Nb5 {[%emt 0:8:51]} a6 {[%emt 0:3:48]} 15. Nd6 {[%emt 0:14:44]} Bxd6 {[%emt 0:1:21]} 16. Bxd6 {[%emt 0:0:35]} Rd8 {[%emt 0:2:12]} 17. Be5 {[%emt 0:2:43]} Rxd1+ {[%emt 0:11:57]} 18. Rxd1 {[%emt 0:1:7]} Bd5 {[%emt 0:1:20]} 19. Bd3 {[%emt 0:4:40]} Nd7 {[%emt 0:10:46]} 20. Bc3 {[%emt 0:7:29]} Bxa2 {[%emt 0:5:23]} 21. Qc2 {[%emt 0:25:8]} Nf6 {[%emt 0:12:48]} 22. Qa4 {[%emt 0:1:23]} Bd5 {[%emt 0:0:38]} 23. Qh4 {[%emt 0:0:55]} h6 {[%emt 0:1:46]} 24. Bxf6 {[%emt 0:3:26]} gxf6 {[%emt 0:0:37]} 25. Qxh6 {[%emt 0:0:57]} f5 {[%emt 0:0:51]} 26. Qg5+ {[%emt 0:11:17]} Kf8 {[%emt 0:0:52]} 27. h4 {[%emt 0:0:40]} Bb3 {[%emt 0:13:6]} 28. Ra1 {[%emt 0:0:44]} a5 {[%emt 0:2:37]} 29. Qh6+ {[%emt 0:2:50]} Ke7 {[%emt 0:1:21]} 30. Qg5+ {[%emt 0:0:33]} Kf8 {[%emt 0:0:54]} 31. Be2 {[%emt 0:4:38]} Bd5 {[%emt 0:15:18]} 32. Qh6+ {[%emt 0:1:18]} Ke7 {[%emt 0:0:39]} 33. Qg5+ {[%emt 0:0:33]} Kf8 {[%emt 0:0:42]} 34. Qf6 {[%emt 0:4:58]} Qd8 {[%emt 0:1:43]} 35. Qh6+ {[%emt 0:0:31]} Ke7 {[%emt 0:0:38]} 36. Qg5+ {[%emt 0:1:0]} Kf8 {[%emt 0:0:40]} 37. Qh6+ {[%emt 0:0:33]} Ke7 {[%emt 0:0:34]} 38. Rc1 {[%emt 0:1:36]} Qg8 {[%emt 0:2:11]} 39. Bf1 {[%emt 0:2:31]} Qh8 {[%emt 0:1:13]} 40. Qg5+ {[%emt 0:0:0]} Kd6 {[%emt 0:0:0]} 41. e4 {[%emt 0:30:26]} Bxe4 {[%emt 0:24:49]} 42. Qg3+ {[%emt 0:1:43]} Ke7 {[%emt 0:2:49]} 43. Qa3+ {[%emt 0:5:7]} Kf6 {[%emt 0:1:49]} 44. Rc7 {[%emt 0:0:5]} Kg7 {[%emt 0:17:41]} 45. Qe7 {[%emt 0:4:51]} Rf8 {[%emt 0:2:5]} 46. Rc3 {[%emt 0:1:32]} Qh6 {[%emt 0:5:18]} 47. Qd6 {[%emt 0:0:46]} Rg8 {[%emt 0:2:59]} 48. Qxb6 {[%emt 0:2:0]} Kh7 {[%emt 0:0:49]} 49. Qxa5 {[%emt 0:1:27]} f4 {[%emt 0:5:49]} 50. Qb4 {[%emt 0:4:39]} Bd5 {[%emt 0:1:21]} 51. Qe7 {[%emt 0:5:33]} Rg7 {[%emt 0:2:8]} 52. Qe8 {[%emt 0:0:15]} Qxh4 {[%emt 0:0:58]} 53. Rc8 {[%emt 0:0:46]} Qg4 {[%emt 0:0:8]} 54. Qh8+ {[%emt 0:0:44]} Kg6 {[%emt 0:0:3]} 55. Rg8 {[%emt 0:0:45]} Kf6 {[%emt 0:0:17]} 56. b4 {[%emt 0:0:57]} Qg6 {[%emt 0:0:57]} 57. b5 {[%emt 0:0:43]} Qh7 {[%emt 0:0:15]} 58. Qxh7 {[%emt 0:0:28]} Rxh7 {[%emt 0:0:2]} 59. b6 {[%emt 0:0:2]} Ke5 {[%emt 0:0:9]} 60. Rc8 {[%emt 0:0:58]} f5 {[%emt 0:0:23]} 61. Rc7 {[%emt 0:15:34]} Rxc7 {[%emt 0:15:47]} 62. bxc7 {[%emt 0:0:1]} Bb7 {[%emt 0:0:5]} 63. g3 {[%emt 0:0:37]} fxg3 {[%emt 0:1:6]} 64. fxg3 {[%emt 0:0:1]} Kd6 {[%emt 0:0:6]} 65. g4 {[%emt 0:0:45]} fxg4 {[%emt 0:0:52]} 66. Be2 {[%emt 0:0:5]} Kxc7 {[%emt 0:0:23]} 67. Bxg4 {[%emt 0:0:3]} Bd5 {[%emt 0:0:8]} 68. Bxe6 {[%emt 0:0:3]} Bxe6 {[%emt 0:0:3]} 1/2-1/2

[Event "88th Tata Steel Masters 2026"]
[White "Aravindh,Chithambaram VR."]
[Black "Giri,Anish"]
[Site "Wijk aan Zee"]
[Round "12.2"]
[Annotator "TA"]
[Result "1/2-1/2"]
[Date "2026.01.31"]
[WhiteElo "2700"]
[BlackElo "2760"]
[PlyCount "104"]
[TimeControl "60"]

{[%evp 10,104,39,-15,3,0,0,0,19,11,8,0,0,0,4,0,0,0,0,0,0,0,0,0,0,0,43,47,48,52,75,61,69,69,119,84,88,0,0,0,0,0,0,0,37,39,27,37,30,-6,0,-41,-48,-81,-67,-68,0,-14,18,-3,0,0,0,0,0,0,0,0,11,10,1,-22,-22,-22,-22,-22,-22,-22,-22,-63,-63,-74,-74,-74,-74,-74,-74,-74,-74,-74,-74,-74,-74,-74,0,-74,0]} 1. e4 {[%emt 0:0:0]} c5 {[%emt 0:0:0]} 2. Nf3 {[%emt 0:0:0]} d6 {[%emt 0:0:0]} 3. d4 {[%emt 0:0:0]} cxd4 {[%emt 0:0:0]} 4. Nxd4 {[%emt 0:0:0]} Nf6 {[%emt 0:0:0]} 5. Nc3 {[%emt 0:0:0]} a6 {[%emt 0:0:0]} 6. Rg1 {[%emt 0:0:0]} (6. Be2 $14 )Nc6 {[%emt 0:0:0] B90: Sicilian Najdorf: Unusual White 6th moves, 6 Be3 Ng4 and 6 Be3 e5.} 7. g4 {[%emt 0:0:0]} g6 {[%emt 0:0:0] Recently 7...h6 got a lot of attention.} 8. g5 {[%emt 0:0:0]} Nd7 {[%emt 0:0:0] The position is equal.} 9. Be3 {[%emt 0:0:0]} h6 {[%emt 0:0:0]} 10. h4 {[%emt 0:14:28]} hxg5 {[%emt 0:0:0]} 11. hxg5 {[%emt 0:1:11]} Bg7 {[%emt 0:0:0]} 12. Be2 {[%emt 0:1:21]} Qa5 {[%emt 0:12:53]} 13. Qd2 {[%emt 0:3:3]} Nc5 {[%emt 0:8:22]} 14. O-O-O {[%emt 0:13:4]} Rh3 $146 {[%emt 0:16:24]} ({Predecessor:} 14... Bd7 15. Kb1 Nxd4 16. Bxd4 Bxd4 17. Qxd4 O-O-O 18. b4 Qb6 19. Nd5 Qa7 20. Nxe7+ Kb8 21. Qxd6+ {1-0 Lisenkov,S (2322)-Vingris,M (2328) Titled Tuesday intern op 07th Oct blitz 2025 (6)} )15. f3 {[%emt 0:17:31]} Be6 {[%emt 0:14:42]} 16. a3 {[%emt 0:13:0]} Rc8 {[%emt 0:2:29]} 17. Rh1 {[%emt 0:2:31] A sharp opening} Rxh1 {[%emt 0:17:35]} 18. Rxh1 {[%emt 0:0:37]} Na4 {[%emt 0:1:25]} 19. Nxa4 {[%emt 0:2:21]} Qxa4 {[%emt 0:10:11]} 20. Nxe6 {[%emt 0:1:2]} fxe6 {[%emt 0:0:31]} 21. Kb1 {[%emt 0:0:39]} Kd7 {[%emt 0:2:17]} (21... Nd4 $14 22. Bd1 Nb5 )22. Qd1 {[%emt 0:6:28]} Rf8 {[%emt 0:8:43]} 23. f4 {[%emt 0:17:52]} (23. c3 $16 Qxd1+ 24. Bxd1 (24. Rxd1 Be5 $11 ))Qxe4 $40 {[%emt 0:0:0][%mdl 128] Black has some attack.} 24. Bc1 {[%emt 0:0:33]} Rxf4 $1 {[%emt 0:0:9]} 25. Bxf4 {[%emt 0:5:4]} Qxf4 {[%emt 0:0:31]} 26. Qg1 {[%emt 0:0:31]} Qe5 {[%emt 0:0:53][%csl Gg7][%cal Re5b2] [#]} 27. Qb6 {[%emt 0:0:51]} Nd8 {[%emt 0:4:5]} 28. Bf3 {[%emt 0:0:46]} d5 {[%emt 0:1:14]} 29. Ka2 {[%emt 0:4:28]} Qxg5 {[%emt 0:1:0]} 30. c4 {[%emt 0:0:35]} Qf4 {[%emt 0:0:59]} 31. Be2 {[%emt 0:1:40]} Qe4 {[%emt 0:2:11]} 32. Re1 {[%emt 0:0:45]} Qd4 {[%emt 0:1:37]} (32... Bd4 $15 33. c5 Qf4 )33. Qb4 {[%emt 0:1:23]} (33. Qxd4 {simplifies} Bxd4 34. Rd1 Nc6 35. b4 )Kc8 {[%emt 0:1:55]} 34. Rd1 {[%emt 0:1:33]} Nc6 {[%emt 0:2:32]} 35. Qb3 {[%emt 0:0:34]} Qe5 {[%emt 0:0:49]} 36. cxd5 {[%emt 0:2:12]} Nd4 {[%emt 0:0:45]} 37. Qc3+ {[%emt 0:1:57]} Kb8 {[%emt 0:0:35]} 38. Bd3 {[%emt 0:0:33]} exd5 {[%emt 0:0:41]} 39. Bxg6 {[%emt 0:0:39]} Qf6 {[%emt 0:4:16] Prevents Bf7.} 40. Qxd4 {[%emt 0:0:0]} Qxd4 {[%emt 0:0:0]} 41. Rxd4 {[%emt 0:20:36]} Bxd4 {[%emt 0:20:7][%mdl 4096] Endgame KB-KB. Black is two pawns up.} 42. Bf7 {[%emt 0:0:4]} Kc7 {[%emt 0:0:17]} 43. Bxd5 {[%emt 0:0:6]} a5 {[%emt 0:0:6]} 44. a4 {[%emt 0:0:59]} b6 {[%emt 0:0:10]} 45. Bc4 {[%emt 0:0:27]} Kd6 {[%emt 0:0:2]} 46. Kb1 {[%emt 0:0:8]} e5 {[%emt 0:0:35]} 47. Kc2 {[%emt 0:0:8]} e4 {[%emt 0:0:2]} 48. b3 {[%emt 0:0:9]} Ke5 {[%emt 0:0:3]} 49. Kd1 {[%emt 0:0:4]} Kf4 {[%emt 0:0:2]} 50. Ke2 {[%emt 0:0:4]} Bc5 {[%emt 0:0:1]} 51. Bb5 {[%emt 0:0:6]} Bd4 {[%emt 0:0:1]} 52. Bc4 $1 {[%emt 0:0:6]} Bc5 {[%emt 0:0:1] Weighted Error Value: White=0.10 (very precise) /Black=0.11 (very precise)   Mistake:       	White=1     	Black=3      Inaccurate:     	White=4     	Black=3      OK:         	White=8     	Black=9      Best:        	White=2     	Black=1      Strong:       	White=1     	Black=1} ({Black should play} 52... Be5 $17 )1/2-1/2

[Event "88th Tata Steel Masters 2026"]
[White "Sindarov,Javokhir"]
[Black "Praggnanandhaa R"]
[Site "Wijk aan Zee"]
[Round "12.3"]
[Annotator "TA"]
[Result "1/2-1/2"]
[Date "2026.01.31"]
[WhiteElo "2726"]
[BlackElo "2758"]
[PlyCount "27"]
[TimeControl "60"]

{[%evp 9,27,23,29,17,27,33,29,28,35,5,41,41,44,41,40,0,39,0,49,0]} 1. d4 {[%emt 0:0:0]} d5 {[%emt 0:0:0]} 2. c4 {[%emt 0:0:0]} e6 {[%emt 0:0:0]} 3. Nc3 {[%emt 0:0:0]} a6 {[%emt 0:0:0]} 4. cxd5 {[%emt 0:0:0]} exd5 {[%emt 0:0:0]} 5. Nf3 {[%emt 0:0:0]} Nf6 {[%emt 0:0:0]} 6. Bg5 {[%emt 0:0:0] D37: Queen's Gambit Declined: 5 Bf4.} Be6 {[%emt 0:0:0]} 7. e3 {[%emt 0:0:0]} Nbd7 {[%emt 0:0:0]} 8. Bd3 {[%emt 0:0:0] White has an edge.} h6 {[%emt 0:0:0]} 9. Bh4 {[%emt 0:0:0]} g5 {[%emt 0:0:0]} 10. Bg3 {[%emt 0:0:0]} Nh5 {[%emt 0:0:0]} 11. Be5 $146 {[%emt 0:0:0]} ({Predecessor:} 11. Nd2 Nxg3 12. hxg3 c6 13. Qc2 Bg7 14. Rb1 Qe7 15. b4 b5 16. Nb3 Qxb4 17. Nc5 Qa5 18. Nxe6 fxe6 19. Bg6+ Ke7 20. O-O c5 {1-0 Maghsoodloo,P (2708)-Moroni,L (2551) 1st Thursday Dec 18th blitz 2025 (5)} )Nhf6 {[%emt 0:0:0]} 12. Bg3 {[%emt 0:11:55]} Nh5 $1 {[%emt 0:0:0]} 13. Be5 {[%emt 0:10:0]} Nhf6 {[%emt 0:0:0]} 14. Bg3 {[%emt 0:0:32] Weighted Error Value: White=0.20 (precise) /Black=0.05 (flawless)   Mistake:       	White=1     	---        Inaccurate:     	White=1     	Black=1      OK:         	White=3     	---        Best:        	---       	Black=1      Strong:       	---       	Black=1} (14. Qb3 $14 )1/2-1/2

[Event "88th Tata Steel Masters 2026"]
[White "Abdusattorov,Nodirbek"]
[Black "Bluebaum,Matthias"]
[Site "Wijk aan Zee"]
[Round "12.4"]
[Annotator "TA"]
[Result "1-0"]
[Date "2026.01.31"]
[WhiteElo "2751"]
[BlackElo "2679"]
[PlyCount "85"]
[TimeControl "60"]

{[%evp 20,85,21,0,19,20,25,28,27,29,62,50,63,52,46,50,44,0,62,60,60,66,67,71,75,22,57,31,32,41,32,8,36,0,40,0,0,0,0,0,0,-10,0,-8,182,199,262,259,327,318,325,327,328,324,445,432,424,428,440,440,442,425,522,523,506,480,484,474]} 1. c4 {[%emt 0:0:0]} e6 {[%emt 0:0:0]} 2. Nc3 {[%emt 0:0:0]} d5 {[%emt 0:0:0]} 3. d4 {[%emt 0:0:0]} Nf6 {[%emt 0:0:0]} 4. cxd5 {[%emt 0:0:0]} exd5 {[%emt 0:0:0]} 5. Bg5 {[%emt 0:0:0]} Be7 {[%emt 0:0:0]} 6. e3 {[%emt 0:0:0]} h6 {[%emt 0:0:0]} 7. Bh4 {[%emt 0:0:0]} O-O {[%emt 0:0:0]} 8. Bd3 {[%emt 0:0:0]} Re8 {[%emt 0:0:0]} 9. Nge2 {[%emt 0:0:0]} c6 {[%emt 0:0:0]} 10. Qc2 {[%emt 0:0:0]} Nbd7 {[%emt 0:0:0][%cal Yb8d7,Yd7f8,Yf8e6,Ye6c5][%mdl 32]} 11. h3 {[%emt 0:0:0]} Nf8 {[%emt 0:0:0] D36: Queen's Gambit Declined: Exchange Variation: Main line (5 Bg5 c6 6 Qc2).} 12. Bg3 {[%emt 0:0:0] 12.0-0 gains popularity.} Ne6 {[%emt 0:3:20]} 13. O-O {[%emt 0:0:0]} Bd6 {[%emt 0:5:41] White has an edge.} 14. Be5 {[%emt 0:6:30]} Bxe5 {[%emt 0:7:38]} 15. dxe5 {[%emt 0:0:37]} Nd7 {[%emt 0:0:40]} 16. f4 {[%emt 0:0:38] White is more active.} Nec5 $146 {[%emt 0:4:44]} ({Predecessor:} 16... Ndc5 17. Rad1 Nxd3 18. Qxd3 b6 19. e4 dxe4 20. Qg3 Qe7 21. Nxe4 Ba6 22. Rd7 Qb4 {1-0 Aczel,G (2485)-Sklokin,S (2329) Budapest One Week GM-A 12 2024 (1)} )17. Bh7+ {[%emt 0:7:51]} Kh8 {[%emt 0:0:52]} 18. b4 {[%emt 0:16:36]} Nf8 {[%emt 0:8:15]} (18... Ne6 $11 )19. bxc5 $14 {[%emt 0:2:59]} Nxh7 {[%emt 0:0:39]} 20. e4 {[%emt 0:11:6]} Qa5 {[%emt 0:5:56]} 21. exd5 {[%emt 0:3:13] and Ne4 should not be overlooked. White has a king side majority} Qxc5+ {[%emt 0:0:50]} 22. Kh1 {[%emt 0:2:59]} ({White should try} 22. Kh2 $16 )cxd5 $11 {[%emt 0:0:50]} 23. Qd2 {[%emt 0:11:39][%cal Yf1c1]} Bd7 {[%emt 0:8:39]} 24. Rac1 {[%emt 0:1:11][%mdl 1024] White has compensation.} Qa5 {[%emt 0:2:41]} 25. Qb2 {[%emt 0:7:26]} (25. Qxd5 {simplifies} Qxd5 26. Nxd5 Red8 27. Nec3 )Qb6 {[%emt 0:4:53]} 26. Qd2 {[%emt 0:2:43]} Qa5 {[%emt 0:1:20]} 27. Nd4 {[%emt 0:1:11]} f6 {[%emt 0:4:59]} 28. Qb2 {[%emt 0:8:52]} fxe5 {[%emt 0:4:12]} 29. fxe5 {[%emt 0:0:46]} Rxe5 {[%emt 0:2:59]} 30. Rf7 {[%emt 0:1:5]} Nf6 {[%emt 0:3:16] [#] ...Rc8 would now be deadly.} 31. Rf1 {[%emt 0:0:31]} Qc7 $2 {[%emt 0:8:45] This costs Black the game.} (31... Rc8 $11 32. Nce2 Qd8 )32. Ncb5 $18 {[%emt 0:9:32][%cal Yc3b5,Yb5d6,Yd6e4,Ye4f2,Yf2g4][%mdl 32]} Qc4 {[%emt 0:5:20]} (32... Qa5 {was called for.} )33. R1xf6 {[%emt 0:1:3]} gxf6 {[%emt 0:0:39]} 34. Qf2 {[%emt 0:3:45] Wards off Qf1+} Qc1+ {[%emt 0:18:59]} 35. Kh2 {[%emt 0:0:46]} Qg5 {[%emt 0:7:44]} 36. Rxd7 {[%emt 0:0:37]} Re4 {[%emt 0:3:15]} 37. Nd6 {[%emt 0:1:12] [#] White is clearly winning. A dynamic duo of knights.} Qe5+ {[%emt 0:1:35]} 38. g3 {[%emt 0:0:35] White threatens Nf7+ and mate.} Qxd4 {[%emt 0:0:41]} 39. Nxe4 {[%emt 0:0:35]} Qxf2+ {[%emt 0:0:31]} 40. Nxf2 {[%emt 0:0:0]} Rc8 {[%emt 0:0:0]} 41. Rxb7 {[%emt 0:21:58]} Rc2 {[%emt 0:20:5]} 42. Kg1 {[%emt 0:0:4]} Rxa2 {[%emt 0:0:5]} 43. Ng4 {[%emt 0:0:5][%csl Yf6,Yh6] Weighted Error Value: White=0.11 (very precise) /Black=0.31   Loses game:     	---       	Black=1      Mistake:       	White=1     	Black=2      Inaccurate:     	White=3     	Black=4      OK:         	White=6     	Black=6      Best:        	---       	Black=1} 1-0